Cogmind - Beta 10.2 @@@ ROGUE MODE // 2021.09.26 @ 16:36:11 Player: Coronach Result: Destroyed by G-47 Trooper with Particle Gun Performance ------------- Evolutions (0) 0 Regions Visited (1) 200 Robots Destroyed (17) 85 Value Destroyed (360) 360 Prototype IDs (0) 0 Alien Tech Used (0) 0 Bonus (0) 0 TOTAL SCORE: 645 Bonus ------- None Cogmind --------- Core Integrity 0/250 Matter 21/300 Energy 100/100 System Corruption 0% Temperature Cool (9) Movement Rolling (100) Location -10/Materials Parts ------- > --- POWER (1) -------- (None) > --- PROPULSION (2) --- Compact Wheel Compact Wheel > --- UTILITY (2) ------ Large Storage Unit Hacking Suite > --- WEAPON (2) ------- (None) > --- INVENTORY (10) --- Light Armor Plating Peak State ------------ > --- POWER ------------ Ion Engine > --- PROPULSION ------- Wheel Compact Wheel > --- UTILITY ---------- Small Storage Unit Hacking Suite > --- WEAPON ----------- Assault Rifle Assault Rifle > --- INVENTORY -------- Light Ion Engine Compact Wheel Light Assault Rifle [Rating: 9] Favorites ----------- Power Ion Engine Engine Ion Engine Propulsion Compact Wheel Leg Aluminum Leg Wheel Compact Wheel Utility Hacking Suite Storage Large Storage Unit Hackware Hacking Suite Weapon Assault Rifle Ballistic Gun Assault Rifle Launcher Grenade Launcher Build | -11 -10 ------- Run | Scr Mat Slots Evolved . | . . Power . | . . Propulsion . | . . Utility . | . . Weapon . | . . Parts Attached 9 | 3 6 Power 1 | . 1 Engine 1 | . 1 Core . | . . Reactor . | . . Propulsion 3 | 2 1 Treads . | . . Leg . | . . Wheel 3 | 2 1 Hover . | . . Flight . | . . Utility 2 | . 2 Device . | . . Storage 1 | . 1 Processor . | . . Hackware 1 | . 1 Protection . | . . Artifact . | . . Weapon 3 | 1 2 Energy Gun . | . . Energy Cannon . | . . Ballistic Gun 2 | 1 1 Ballistic Cannon . | . . Launcher 1 | . 1 Special Weapon . | . . Impact Weapon . | . . Slashing Weapon . | . . Piercing Weapon . | . . Special Melee Weapon . | . . Unidentified Prototypes . | . . Parts Lost 7 | . 7 Power 2 | . 2 Propulsion 1 | . 1 Utility . | . . Weapon 4 | . 4 Highest Loss Streak 4 | . 4 Average Slot Usage (%) 89 | . 89 Engine 11 | . 11 Wheel 25 | . 25 Storage 14 | . 14 Hackware 10 | . 10 Ballistic Gun 24 | . 24 Naked Turns . | . . Heaviest Build 25 | 13 25 Greatest Support 26 | 26 26 Greatest Overweight (x) . | . . Average Overweight (x) . | . . Largest Inventory Capacity 10 | 6 10 Average Capacity 8 | 6 8 Most Carried 6 | 6 5 Average Carried 3 | 5 3 Final Capacity 10 | 6 10 Final Carried 3 | 3 1 Class Distribution -------------------- 100% | Mutant Dominant Class ---------------- Mutant | -10/Materials Resources | -11 -10 ----------- Run | Scr Mat Matter Collected 346 | 252 94 Remotely . | . . Salvage Created 632 | 95 537 Parts 36 | 3 33 Haulers Intercepted 1 | . 1 Recyclers Shooed . | . . Parts Field Recycled . | . . Retrieved Matter . | . . Parts Self-Destructed . | . . Prevented . | . . Kills | -11 -10 ------- Run | Scr Mat Combat Hostiles Destroyed 8 | . 8 Guns 5 | . 5 AOE 3 | . 3 Classes Destroyed 8 | 2 6 Worker 1 | . 1 Builder 1 | . 1 Tunneler 1 | 1 . Hauler 1 | . 1 Recycler 3 | 1 2 Operator 1 | . 1 Watcher 1 | . 1 Grunt 8 | . 8 Best Kill Streak 5 | 1 5 Combat Bots Only 3 | . 3 Max Kills in Single Turn 1 | 1 1 Gunslinging . | . . Exploded 1 | . 1 Melee . | . . Uniques/NPCs Destroyed . | . . Combat | -11 -10 -------- Run | Scr Mat Damage Taken 848 | . 848 Core 257 | . 257 Absorbed by Shields . | . . Core Remaining (%) 100 | 100 . Volleys Fired 81 | 12 69 Largest 2 | 2 2 Hottest 50 | 40 50 Shots Fired 131 | 24 107 Gun 124 | 24 100 Cannon . | . . Launcher 7 | . 7 Special . | . . Kinetic 124 | 24 100 Thermal . | . . Explosive 7 | . 7 Electromagnetic . | . . Robot Hit Streak 13 | 6 13 Robot Miss Streak 6 | 3 6 Penetration Max . | . . Secondary Targets 2 | . 2 Max Gunslinging Chain 1 | . 1 Shots Hit Robots 76 | 12 64 Core Hits 27 | 3 24 Critical Hits . | . . Critical Kills . | . . Critical Parts Destroyed . | . . Melee Attacks . | . . Impact . | . . Slashing . | . . Piercing . | . . Sneak Attacks . | . . Combat Hostiles . | . . Follow-up Attacks . | . . Damage Inflicted 1043 | 124 919 Guns 822 | 124 698 Cannons . | . . Explosions 221 | . 221 Melee . | . . Ramming . | . . Kinetic 822 | 124 698 Thermal . | . . Explosive 221 | . 221 Electromagnetic . | . . Impact . | . . Slashing . | . . Piercing . | . . Highest Corruption . | . . Average Corruption . | . . Corruption Purged . | . . Overload Shots . | . . Overflow Damage 12 | . 12 Projectiles . | . . Explosions 12 | . 12 Melee . | . . Knockbacks . | . . Impact . | . . Kinetic . | . . Secondary . | . . Self-Inflicted Damage 80 | . 80 Shots 4 | . 4 Rammed . | . . Targets Rammed . | . . Kicked . | . . Crushed . | . . Highest Temperature 26 | . 26 Average Temperature 9 | . 9 Received Heat Transfer 426 | . 426 Siege Activations . | . . Robots Corrupted . | . . Combat Hostiles . | . . Parts Fried . | . . Impact Corruptions . | . . Robots Melted . | . . Combat Hostiles . | . . Parts Melted . | . . Heat Transferred . | . . Parts Sabotaged . | . . Parts Stolen . | . . Parts Stripped . | . . Power Chain Reactions . | . . Missiles Intercepted . | . . Alert | -11 -10 ------- Run | Scr Mat Peak Influence 260 | 10 260 Initial 6 | . 6 Average 82 | 5 98 Maximum Alert Level 1 | . 1 Low Security (%) 91 | 100 89 Level 1 8 | . 10 Level 2 . | . . Level 3 . | . . Level 4 . | . . Level 5 . | . . High Security . | . . Max Security . | . . Squads Dispatched 3 | . 3 Investigation . | . . Extermination . | . . Reinforcement 3 | . 3 Assault . | . . Garrison . | . . Intercept . | . . Construction Impeded . | . . Haulers Reinforced . | . . Stealth | -11 -10 --------- Run | Scr Mat Distress Signals 1 | . 1 Communications Jammed . | . . Distress Signals . | . . Times Spotted 20 | . 20 Peak Tracking Total 5 | . 5 Tactical Retreats 2 | . 2 Traps | -11 -10 ------- Run | Scr Mat Traps Triggered . | . . Indirectly . | . . Trap Hack Attempts . | . . Triggered . | . . Disarmed . | . . Reprogrammed . | . . Reused . | . . Traps Extracted . | . . Installed . | . . Triggered . | . . Machines | -11 -10 ---------- Run | Scr Mat Machines Disabled 1 | . 1 Max in Single Turn 1 | . 1 Machines Sabotaged . | . . Garrisons Compromised . | . . Overloaded Fab Kills . | . . Fab Network Shutdowns . | . . Hacking | -11 -10 --------- Run | Scr Mat Machines Accessed . | . . Terminals . | . . Fabricators . | . . Repair Stations . | . . Recycling Units . | . . Scanalyzers . | . . Garrison Access . | . . Total Hacks . | . . Successful . | . . Failed . | . . Catastrophic . | . . Database Lockouts . | . . Manual . | . . Terminals . | . . Fabricators . | . . Repair Stations . | . . Recycling Units . | . . Scanalyzers . | . . Garrison Access . | . . Terminal Hacks . | . . Fabricator Hacks . | . . Repair Station Hacks . | . . Recycling Unit Hacks . | . . Scanalyzer . | . . Garrison Access Hacks . | . . Unauthorized Hacks . | . . Terminals . | . . Fabricators . | . . Repair Stations . | . . Recycling Units . | . . Scanalyzers . | . . Garrison Access . | . . Data Cores Recovered . | . . Used . | . . Hacking Detections . | . . Full Trace Events . | . . Feedback Events . | . . Feedback Blocked . | . . Robot Schematics Acquired . | . . Robots Built . | . . Matter . | . . Time . | . . Total Robot Build Rating . | . . Part Schematics Acquired . | . . Parts Built . | . . Matter . | . . Time . | . . Total Part Build Rating . | . . Parts Repaired . | . . Time . | . . Parts Recycled . | . . Recycled Matter . | . . Retrieved Matter . | . . Retrieved Components . | . . Parts Scanalyzed . | . . Part Schematics Acquired . | . . Parts Damaged . | . . Bothacking | -11 -10 ------------ Run | Scr Mat Used RIF Installer . | . . Robots Hacked . | . . Non-combat . | . . Combat . | . . Robot Hacks Applied . | . . Relay Couplers Released . | . . Robots Rewired . | . . Allies Hacked . | . . Hacks Repelled . | . . Allies | -11 -10 -------- Run | Scr Mat Total Allies . | . . Largest Group . | . . Highest-Rated Group . | . . Highest-Rated Ally . | . . Total Orders . | . . Ally Attacks . | . . Total Damage . | . . Kills . | . . Allies Corrupted . | . . Allies Melted . | . . Intel | -11 -10 ------- Run | Scr Mat Robot Analysis Total . | . . Derelict Logs Recovered . | . . Drone Launches . | . . Drone Recoveries . | . . Exploration | -11 -10 ------------- Run | Scr Mat Turns Passed 383 | 67 316 Spaces Moved 167 | 25 142 Core . | . . Treads . | . . Legs 17 | 17 . Wheels 150 | 8 142 Hover . | . . Flight . | . . Fastest Speed 90 | 90 90 Average Speed 93 | 110 90 Slowest Speed 120 | 120 90 Overloaded Moves . | . . Propulsion Burnouts . | . . Robots Hopped . | . . Cave-ins Triggered . | . . Exploration Rate (%) 17 | 3 32 Regions Visited 1 Branch Regions . Pre-discovered Areas . | . . Known Exits Taken . | . . Unknown Exits Taken 1 | 1 . Scrap Searched . | . . Spaces Dug . | . . Terrain Destroyed 50 | . 50 Melee . | . . Projectile . | . . AOE 50 | . 50 Terrain Rammed . | . . Walls Destroyed . | . . Machines Disabled . | . . Actions | -11 -10 --------- Run | Scr Mat Total 270 | 43 227 Wait 7 | . 7 Move 166 | 24 142 Hop . | . . Pick Up 2 | . 2 Fast Attach 2 | 1 1 Attach 5 | 1 4 Detach . | . . Swap 2 | 1 1 Drop 5 | 4 1 Fire 81 | 12 69 Melee . | . . Ram . | . . Kick . | . . Crush . | . . Escape Stasis . | . . Rewire . | . . Trap . | . . Miscellaneous . | . . Route ------- -11/Scrapyard -10/Materials History --------- Turn | Location | Event 24 | -11/Scrapyard | Discovered new exit (range 3) 68 | -11/Scrapyard | Entered Materials 302 | -10/Materials | Build established: Mutant 328 | -10/Materials | Lost 3 parts (1p1n1w) 335 | -10/Materials | Core integrity fell below 50% 375 | -10/Materials | Core integrity fell below 20% 384 | -10/Materials | Destroyed by G-47 Trooper with Particle Gun Last Messages --------------- 00357_ R-06 Scavenger destroyed. 00357_ Recycling Unit disabled. 00357_ Weight Redist. System tumbles out of recycling unit. 00357_ Lgt. Treads tumbles out of recycling unit. 00360_ G-34 Mercenary destroyed. 00360_ Grenade Launcher destroyed. 00360_ Destroyed Grenade Launcher. 00362_ The unstable cave ceiling collapses. 00362_ U-05 Engineer builds a Wall. 00366_ U-05 Engineer lays Concrete. 00368_ The unstable cave ceiling collapses. 00368_ U-05 Engineer builds a Wall. 00372_ The unstable cave ceiling collapses. 00373_ U-05 Engineer lays Concrete. 00377_ U-05 Engineer builds a Wall. 00378_ R-06 Scavenger collects Heat Sink. 00381_ U-05 Engineer builds a Wall. 00383_ Lgt. Assault Rifle destroyed. 00383_ Lgt. Ion Engine destroyed. 00383_ R-06 Scavenger collects Terrain Scan Processor. Map ----- +----------------------------------------------------+ | ?????????????????????????????????????????????????? | | ?????????????????????????????????????????????????? | | ?????????????????????????????????????????????????? | | ?????????????????????????????????????????????????? | | ?????????????????????????????????????????????????? | | ?????????????????????????????????????????????????? | | ?????????????????????????????????????????????????? | | ?????????????????????????????????????????????????? | | ?????????????????????????????????????????????????? | | ?????????????????????????????????????????????????? | | ????????????????????????##+#?????????????????????? | | ???????????????????????? ???????????????????? | | ???????????????????????? ???????????????????? | | ???????????????????????? ???????????????????? | | ???????????????????????? #???????????????????? | | ???????????????????????? ggg ???????????????????? | | ????????????????????????#% #???????????????????? | | ????????????????????????# = #???????????????????? | | ???????????????????????? * ????????????????????? | | ???????????????????????? %% ????????????????????? | | ????????????????????????#=*=#????????????????????? | | ????????????????????????#% !#?######?????????????? | | ????????????# ?????????# ## #####?????????? | | ?????????????? !###### ????????? | | ?????????????????#### # ????????? | | ?????????? ur%% @ ????????? | | ???????????????# w # #?????????????? | | ???????????????# # # %=## ##?????????????? | | ???????????????# ## ! = #???#??????????????? | | ???????????????###???## % " #???+??????????????? | | ?????????????????????? " #?? #??????????????? | | ????????????????????? ="" ##? #????? ???????? | | ????????????????????? # #? #?? ??????? | | ???????????????????? ######+## # ???????? | | ??????????????????? !????# + ??????????? | | ??????????????????? ????# #?????????????? | | ?????????????????? ?????# #?????????????? | | ?????????????????? ???####+#######?????????????? | | ?????????????????? ????# #???????????????? | | ???????????????????????# "" #??????########## | | ???????????????????????# "T #??????# # | | ???????????????????????# "" #??????# "" """ # | | ???????????????????????# #??????# "T/""" # | | ??????????????????? + """ #??????# "" """ # | | ????????????????# ## """ ####???# = # | | ????????????????# ??# """ + #???# """ # | | ???????????????????????# ## #???# """ # | | ???????????????????????###########+##### """ # | | ?????????????????????????????# ## # | | ?????????????????????????????#! """ ########+## | +----------------------------------------------------+ Best States ------------- Heat Dissipation 25 Energy Generation 10 Energy Capacity 250 Matter Stores 296 Matter Capacity 300 Sight Range 16 Terrain Scan Density 10 Evasion (%) 42 Offensive Hacking 10 Item Schematics ----------------- None Robot Schematics ------------------ None Fabricated ------------ Nothing Alien Tech Used ----------------- None Achievements -------------- None Challenges ------------ None Game ------ Seed CouplerChainTriangulator Manual? 0 Play Time 00:06:38 Cumulative 157.4 hours Start 2021.09.26 @ 16:32:23 End 2021.09.26 @ 16:36:11 Sessions 1 Manual Loads 0 Difficulty Rogue Special Mode None Game No. 59 Rogue 56 Adventurer 0 Explorer 3 Win Type - Total 2 Types 2/0/0/0/0/0/0/0/0 Lore% 44 Gallery% 62 Achievement% 41 Wizard Run 0 Options --------- ASCII 0 Keyboard 0 Movement Numpad Keybinds 0 Fullscreen 1 Font 18/SmallcapsGlow Map View 76x50 Tactical HUD 1 Map Filters NONE Filters NONE Steam 1 RUN: 7699e16f-050d-4926-92b0-82ab53d7e946